[Event "SVK Amateur-ch 2020"]
[Site "Topolcany"]
[Date "2020.07.10"]
[Round "2.20"]
[White "Joba, Arpad"]
[Black "Trangos, Miroslav"]
[Result "1-0"]
[ECO "C13"]
[WhiteElo "2124"]
[BlackElo "1971"]
[Annotator "ChessBase"]
[PlyCount "113"]
[EventDate "2020.07.10"]
[EventType "swiss"]
[EventCountry "SVK"]
[SourceTitle "playchess.com"]
[Source "ChessBase"]
[SourceQuality "1"]
[TimeControl "3600+30"]

1. e4 {[%emt 0:00:00]} e6 {[%emt 0:00:00]} 2. d4 {[%emt 0:00:00]} d5 {[%emt 0:00:00]} 3. Nc3 {[%emt 0:00:00]} Nf6 {[%emt 0:05:11]} 4. Bg5 {[%emt 0:00:17]} Be7 {[%emt 0:00:34]} 5. e5 {[%emt 0:00:08]} Nfd7 {[%emt 0:01:17]} 6. h4 {[%emt 0:00:09]} a6 {[%emt 0:02:41]} 7. Qg4 {[%emt 0:04:25]} Bxg5 {[%emt 0:02:45]} 8. hxg5 {[%emt 0:01:06]} Nf8 {[%emt 0:01:21]} 9. Bd3 {[%emt 0:02:58]} c5 {[%emt 0:00:22]} 10. g6 {[%emt 0:02:02]} cxd4 {[%emt 0:05:45]} 11. gxf7+ {[%emt 0:03:33]} Kxf7 {[%emt 0:00:32]} 12. Nce2 {[%emt 0:00:50]} Nc6 {[%emt 0:01:15]} 13. Nf3 {[%emt 0:00:17]} Qa5+ {[%emt 0:03:13]} 14. Kf1 {[%emt 0:00:59]} Qc7 {[%emt 0:00:41]} 15. g3 {[%emt 0:04:39]} Kg8 {[%emt 0:01:23]} 16. Nexd4 {[%emt 0:07:02]} Nxd4 {[%emt 0:02:46]} 17. Qxd4 {[%emt 0:00:37]} Bd7 {[%emt 0:00:33]} 18. a4 {[%emt 0:05:56]} Rc8 {[%emt 0:04:55]} 19. Kg2 {[%emt 0:04:58]} Be8 {[%emt 0:05:45]} 20. Qg4 {[%emt 0:04:20]} Qe7 {[%emt 0:03:48]} 21. Ng5 {[%emt 0:01:25]} Bg6 {[%emt 0:04:15]} 22. Bxg6 {[%emt 0:02:31]} Nxg6 {[%emt 0:00:36]} 23. c3 {[%emt 0:04:09]} Nxe5 {[%emt 0:00:51]} 24. Qxe6+ {[%emt 0:00:10]} Qxe6 {[%emt 0:00:17]} 25. Nxe6 {[%emt 0:00:04]} Kf7 {[%emt 0:03:51]} 26. Nf4 {[%emt 0:00:38]} Nc4 {[%emt 0:01:42]} 27. b3 {[%emt 0:01:04]} Nd2 {[%emt 0:00:24]} 28. b4 {[%emt 0:06:16]} Rxc3 {[%emt 0:01:04]} 29. Rad1 {[%emt 0:00:30]} Rc2 {[%emt 0:00:46]} 30. Nxd5 {[%emt 0:00:53]} Ne4 {[%emt 0:03:35]} 31. Rhe1 {[%emt 0:02:47]} Re8 {[%emt 0:01:09]} 32. Rd4 {[%emt 0:00:09]} Nf6 {[%emt 0:01:59]} 33. Rxe8 {[%emt 0:00:22]} Nxe8 {[%emt 0:00:26]} 34. Re4 {[%emt 0:01:23]} Nf6 {[%emt 0:02:33]} 35. Rf4 {[%emt 0:01:16]} Rc6 {[%emt 0:01:47]} 36. a5 {[%emt 0:01:13]} Rd6 {[%emt 0:00:57]} 37. Nb6 {[%emt 0:00:29]} g5 {[%emt 0:01:42]} 38. Rc4 {[%emt 0:01:54]} Rc6 {[%emt 0:01:05]} 39. Rd4 {[%emt 0:00:05]} Ke6 {[%emt 0:00:53]} 40. Na4 {[%emt 0:04:13]} Ke5 {[%emt 0:01:35]} 41. Rd1 {[%emt 0:00:25]} Rc2 {[%emt 0:00:34]} 42. Nc5 {[%emt 0:00:25]} Kf5 {[%emt 0:00:20]} 43. Nxb7 {[%emt 0:01:04]} Ng4 {[%emt 0:01:29]} 44. Rd5+ {[%emt 0:02:59]} Kg6 {[%emt 0:00:02]} 45. Rd6+ {[%emt 0:00:12]} Kh5 {[%emt 0:00:07]} 46. Rxa6 {[%emt 0:00:39]} Rxf2+ {[%emt 0:00:04]} 47. Kg1 {[%emt 0:00:05]} Rb2 {[%emt 0:00:15]} 48. Re6 {[%emt 0:00:48]} Nh2 {[%emt 0:01:37]} 49. a6 {[%emt 0:00:45]} Nf3+ {[%emt 0:00:37]} 50. Kf1 {[%emt 0:00:02]} Kg4 {[%emt 0:00:07]} 51. Re2 {[%emt 0:01:32]} Rxb4 {[%emt 0:01:33]} 52. Nc5 {[%emt 0:00:08]} Rb1+ {[%emt 0:01:05]} 53. Kf2 {[%emt 0:00:09]} Nh2 {[%emt 0:01:15]} 54. a7 {[%emt 0:00:12]} Ra1 {[%emt 0:00:31]} 55. Re4+ {[%emt 0:00:13]} Kf5 {[%emt 0:00:11]} 56. Ra4 {[%emt 0:00:04]} Ng4+ {[%emt 0:00:11]} 57. Ke2 {[%emt 0:00:11]} 1-0

[Event "SVK Amateur-ch 2020"]
[Site "Topolcany"]
[Date "2020.07.10"]
[Round "2.22"]
[White "Blazek, Milos"]
[Black "Bojda, Lubomir"]
[Result "1-0"]
[ECO "C15"]
[WhiteElo "1977"]
[BlackElo "2110"]
[Annotator "ChessBase"]
[PlyCount "77"]
[EventDate "2020.07.10"]
[EventType "swiss"]
[EventCountry "SVK"]
[SourceTitle "playchess.com"]
[Source "ChessBase"]
[SourceQuality "1"]
[TimeControl "3600+30"]

1. e4 {[%emt 0:00:00]} e6 {[%emt 0:01:45]} 2. d4 {[%emt 0:00:00]} d5 {[%emt 0:00:06]} 3. Nc3 {[%emt 0:00:11]} Bb4 {[%emt 0:01:39]} 4. Nge2 {[%emt 0:00:29]} Nf6 {[%emt 0:07:32]} 5. e5 {[%emt 0:02:09]} Nfd7 {[%emt 0:01:02]} 6. a3 {[%emt 0:04:24]} Be7 {[%emt 0:00:20]} 7. f4 {[%emt 0:02:46]} c5 {[%emt 0:00:51]} 8. Be3 {[%emt 0:01:35]} Nc6 {[%emt 0:06:20]} 9. Qd2 {[%emt 0:02:54]} a6 {[%emt 0:02:11]} 10. dxc5 {[%emt 0:06:17]} Nxc5 {[%emt 0:05:01]} 11. Nd4 {[%emt 0:00:40]} Bd7 {[%emt 0:04:24]} 12. Be2 {[%emt 0:05:25]} Qc7 {[%emt 0:04:45]} 13. O-O {[%emt 0:01:51]} g6 {[%emt 0:06:12]} 14. Rad1 {[%emt 0:04:55]} Nxd4 {[%emt 0:02:07]} 15. Bxd4 {[%emt 0:01:29]} Rc8 {[%emt 0:02:53]} 16. Nxd5 {[%emt 0:06:27]} exd5 {[%emt 0:02:16]} 17. e6 {[%emt 0:00:34]} O-O {[%emt 0:02:55]} 18. exd7 {[%emt 0:01:03]} Qxd7 {[%emt 0:02:01]} 19. f5 {[%emt 0:05:49]} Ne4 {[%emt 0:03:25]} 20. Qh6 {[%emt 0:02:05]} Bf6 {[%emt 0:00:29]} 21. Bxf6 {[%emt 0:03:36]} Nxf6 {[%emt 0:00:07]} 22. Bd3 {[%emt 0:00:33]} Rc6 {[%emt 0:03:11]} 23. Rf3 {[%emt 0:01:57]} Ng4 {[%emt 0:01:20]} 24. Qf4 {[%emt 0:03:36]} h5 {[%emt 0:01:27]} 25. fxg6 {[%emt 0:01:10]} f6 {[%emt 0:04:00]} 26. Rh3 {[%emt 0:05:35]} Qe7 {[%emt 0:02:34]} 27. Rxh5 {[%emt 0:02:01]} f5 {[%emt 0:00:49]} 28. Rxf5 {[%emt 0:03:20]} Rxf5 {[%emt 0:00:26]} 29. Bxf5 {[%emt 0:00:36]} Rc4 {[%emt 0:01:17]} 30. Qb8+ {[%emt 0:00:23]} Kg7 {[%emt 0:00:10]} 31. Bxg4 {[%emt 0:00:33]} Rxg4 {[%emt 0:00:10]} 32. Rf1 {[%emt 0:00:46]} Rxg6 {[%emt 0:01:00]} 33. Qf4 {[%emt 0:00:28]} Qc5+ {[%emt 0:00:57]} 34. Kh1 {[%emt 0:00:23]} Qc6 {[%emt 0:00:24]} 35. Qf7+ {[%emt 0:00:28]} Kh6 {[%emt 0:00:06]} 36. Qf8+ {[%emt 0:00:19]} Kg5 {[%emt 0:00:11]} 37. Qf4+ {[%emt 0:00:08]} Kh5 {[%emt 0:00:09]} 38. Rf3 {[%emt 0:00:56]} Rg5 {[%emt 0:00:42]} 39. Qf7+ {[%emt 0:00:30]} 1-0

[Event "SVK Amateur-ch 2020"]
[Site "Topolcany"]
[Date "2020.07.10"]
[Round "2.24"]
[White "Franko, Ondrej"]
[Black "Suder, Jakub"]
[Result "1-0"]
[ECO "B21"]
[WhiteElo "1952"]
[BlackElo "2095"]
[Annotator "ChessBase"]
[PlyCount "114"]
[EventDate "2020.07.10"]
[EventType "swiss"]
[EventCountry "SVK"]
[SourceTitle "playchess.com"]
[Source "ChessBase"]
[SourceQuality "1"]
[TimeControl "3600+30"]

1. e4 {[%emt 0:00:00]} c5 {[%emt 0:00:00]} 2. f4 {[%emt 0:00:00]} e6 {[%emt 0:00:51]} 3. Nf3 {[%emt 0:00:23]} d5 {[%emt 0:00:12]} 4. exd5 {[%emt 0:00:13]} exd5 {[%emt 0:00:16]} 5. Bb5+ {[%emt 0:01:37]} Bd7 {[%emt 0:01:56]} 6. Qe2+ {[%emt 0:02:35]} Qe7 {[%emt 0:00:45]} 7. Ne5 {[%emt 0:02:36]} c4 {[%emt 0:07:36]} 8. Nc3 {[%emt 0:03:13]} Nf6 {[%emt 0:01:19]} 9. b3 {[%emt 0:03:56]} Nc6 {[%emt 0:10:13]} 10. Bxc6 {[%emt 0:10:49]} Bxc6 {[%emt 0:06:32]} 11. bxc4 {[%emt 0:11:07]} dxc4 {[%emt 0:11:00]} 12. Ba3 {[%emt 0:04:50]} Qxa3 {[%emt 0:00:51]} 13. Nxc6+ {[%emt 0:00:41]} Be7 {[%emt 0:01:39]} 14. Nb5 {[%emt 0:04:27]} Qc5 {[%emt 0:00:04]} 15. Nxe7 {[%emt 0:07:27]} Kd7 {[%emt 0:02:10]} 16. Qe5 {[%emt 0:01:59]} Qxe7 {[%emt 0:06:05]} 17. O-O {[%emt 0:00:08]} Kd8 {[%emt 0:03:48]} 18. Nd6 {[%emt 0:05:24]} Ne8 {[%emt 0:04:10]} 19. Nxc4 {[%emt 0:04:03]} Rc8 {[%emt 0:01:22]} 20. Qd5+ {[%emt 0:02:48]} Qd7 {[%emt 0:01:34]} 21. Qxd7+ {[%emt 0:00:04]} Kxd7 {[%emt 0:00:06]} 22. Ne5+ {[%emt 0:00:06]} Kc7 {[%emt 0:02:09]} 23. Nxf7 {[%emt 0:00:23]} Rf8 {[%emt 0:00:22]} 24. Ne5 {[%emt 0:00:20]} Nf6 {[%emt 0:00:15]} 25. Rab1 {[%emt 0:02:24]} Rfd8 {[%emt 0:00:08]} 26. d3 {[%emt 0:00:13]} Rd4 {[%emt 0:00:27]} 27. c4 {[%emt 0:00:51]} Rcd8 {[%emt 0:00:41]} 28. Rb3 {[%emt 0:00:10]} b6 {[%emt 0:00:44]} 29. Rf3 {[%emt 0:01:09]} Re8 {[%emt 0:00:52]} 30. Kf2 {[%emt 0:00:27]} Rd6 {[%emt 0:00:23]} 31. h3 {[%emt 0:00:35]} Nh5 {[%emt 0:00:28]} 32. g3 {[%emt 0:00:23]} g6 {[%emt 0:00:37]} 33. Re3 {[%emt 0:00:24]} Rf8 {[%emt 0:00:50]} 34. Nf3 {[%emt 0:00:38]} Rd7 {[%emt 0:00:50]} 35. Rb5 {[%emt 0:00:35]} Ng7 {[%emt 0:00:41]} 36. Ne5 {[%emt 0:00:30]} Re7 {[%emt 0:00:56]} 37. Ng4 {[%emt 0:00:30]} Rd7 {[%emt 0:00:15]} 38. Ne5 Re7 {[%emt 0:00:03]} 39. Rd5 {[%emt 0:00:42]} Nf5 {[%emt 0:01:18]} 40. Re1 {[%emt 0:00:35]} Rfe8 {[%emt 0:00:54]} 41. c5 {[%emt 0:00:43]} b5 {[%emt 0:02:33]} 42. Rb1 {[%emt 0:00:27]} a6 {[%emt 0:00:25]} 43. Rb3 {[%emt 0:00:30]} Ra8 {[%emt 0:01:02]} 44. a4 {[%emt 0:00:34]} bxa4 {[%emt 0:01:40]} 45. Rb1 {[%emt 0:00:30]} a3 {[%emt 0:00:54]} 46. c6 {[%emt 0:00:19]} Rb8 {[%emt 0:00:27]} 47. Rxb8 {[%emt 0:00:15]} Kxb8 {[%emt 0:00:01]} 48. Ra5 {[%emt 0:00:17]} g5 {[%emt 0:00:26]} 49. Rxa3 {[%emt 0:00:19]} Ka7 {[%emt 0:00:06]} 50. Rb3 {[%emt 0:00:36]} gxf4 {[%emt 0:00:15]} 51. gxf4 {[%emt 0:00:06]} a5 {[%emt 0:00:10]} 52. Nd7 {[%emt 0:00:24]} Nd6 {[%emt 0:00:35]} 53. f5 {[%emt 0:01:42]} h5 {[%emt 0:00:38]} 54. f6 {[%emt 0:00:30]} Rf7 {[%emt 0:00:01]} 55. Kf3 {[%emt 0:00:23]} h4 {[%emt 0:00:18]} 56. Kf4 {[%emt 0:00:20]} a4 {[%emt 0:00:29]} 57. Rb4 {[%emt 0:00:10]} Ka6 {[%emt 0:00:12]} 1-0

[Event "SVK Amateur-ch 2020"]
[Site "Topolcany"]
[Date "2020.07.10"]
[Round "2.25"]
[White "Balazs, Ladislav"]
[Black "Matis, Tibor"]
[Result "0-1"]
[ECO "A05"]
[WhiteElo "2122"]
[BlackElo "1939"]
[Annotator "ChessBase"]
[PlyCount "70"]
[EventDate "2020.07.10"]
[EventType "swiss"]
[EventCountry "SVK"]
[SourceTitle "playchess.com"]
[Source "ChessBase"]
[SourceQuality "1"]
[TimeControl "3600+30"]

1. Nf3 {[%emt 0:00:00]} Nf6 {[%emt 0:00:00]} 2. d4 {[%emt 0:00:17]} c5 {[%emt 0:00:31]} 3. Nc3 {[%emt 0:00:43]} cxd4 {[%emt 0:01:05]} 4. Nxd4 {[%emt 0:00:03]} e5 {[%emt 0:01:09]} 5. Nb3 {[%emt 0:00:36]} d5 {[%emt 0:01:30]} 6. Bg5 {[%emt 0:00:27]} Bb4 {[%emt 0:00:32]} 7. Bxf6 {[%emt 0:04:23]} gxf6 {[%emt 0:01:03]} 8. e3 {[%emt 0:00:21]} Nc6 {[%emt 0:01:32]} 9. a3 {[%emt 0:01:37]} Bxc3+ {[%emt 0:00:22]} 10. bxc3 {[%emt 0:00:02]} Bf5 {[%emt 0:02:16]} 11. Bd3 {[%emt 0:00:58]} e4 {[%emt 0:03:09]} 12. Bb5 {[%emt 0:00:10]} Rg8 {[%emt 0:02:24]} 13. g3 {[%emt 0:05:58]} Bg4 {[%emt 0:02:46]} 14. Bxc6+ {[%emt 0:03:59]} bxc6 {[%emt 0:00:42]} 15. Qd4 {[%emt 0:00:07]} Ke7 {[%emt 0:06:54]} 16. Rb1 {[%emt 0:02:19]} Qd6 {[%emt 0:03:59]} 17. Kd2 {[%emt 0:03:18]} Rgb8 {[%emt 0:03:19]} 18. f4 {[%emt 0:03:33]} Bf3 {[%emt 0:05:19]} 19. Rhf1 {[%emt 0:02:29]} Rb5 {[%emt 0:00:08]} 20. Qa4 {[%emt 0:18:03]} Rab8 {[%emt 0:11:21]} 21. Rb2 {[%emt 0:14:15]} Kf8 {[%emt 0:01:09]} 22. Qa6 {[%emt 0:04:01]} R5b6 {[%emt 0:01:05]} 23. Qxa7 {[%emt 0:00:45]} c5 {[%emt 0:01:05]} 24. Ra2 {[%emt 0:00:44]} Bg4 {[%emt 0:04:57]} 25. a4 {[%emt 0:02:24]} d4 {[%emt 0:06:36]} 26. cxd4 {[%emt 0:00:22]} Be6 {[%emt 0:00:08]} 27. a5 {[%emt 0:00:34]} Rxb3 {[%emt 0:02:27]} 28. cxb3 {[%emt 0:00:18]} Rxb3 {[%emt 0:01:14]} 29. Qa8+ {[%emt 0:00:35]} Rb8 {[%emt 0:00:39]} 30. Qxe4 {[%emt 0:00:34]} Bxa2 {[%emt 0:00:13]} 31. Ra1 {[%emt 0:00:20]} Rb2+ {[%emt 0:01:03]} 32. Kc3 {[%emt 0:00:37]} Rxh2 {[%emt 0:00:55]} 33. d5 {[%emt 0:00:49]} c4 {[%emt 0:00:49]} 34. Rh1 {[%emt 0:00:37]} Qa3+ {[%emt 0:00:24]} 35. Kd4 {[%emt 0:00:02]} Rd2+ {[%emt 0:00:09]} 0-1

[Event "SVK Amateur-ch 2020"]
[Site "Topolcany"]
[Date "2020.07.10"]
[Round "2.26"]
[White "Musial, Tomasz"]
[Black "Deruelle Sala, Albert"]
[Result "0-1"]
[ECO "A81"]
[WhiteElo "1946"]
[BlackElo "2078"]
[Annotator "ChessBase"]
[PlyCount "68"]
[EventDate "2020.07.10"]
[EventType "swiss"]
[EventCountry "SVK"]
[SourceTitle "playchess.com"]
[Source "ChessBase"]
[SourceQuality "1"]
[TimeControl "3600+30"]

1. d4 {[%emt 0:00:00]} f5 {[%emt 0:00:00]} 2. g3 {[%emt 0:00:00]} Nf6 {[%emt 0:00:00]} 3. Bg2 {[%emt 0:00:00]} d6 {[%emt 0:00:06]} 4. c4 {[%emt 0:02:26]} e5 {[%emt 0:00:41]} 5. dxe5 {[%emt 0:00:43]} dxe5 {[%emt 0:00:03]} 6. Qxd8+ {[%emt 0:00:08]} Kxd8 {[%emt 0:00:13]} 7. Nc3 {[%emt 0:01:34]} c6 {[%emt 0:01:26]} 8. e4 {[%emt 0:01:24]} Bb4 {[%emt 0:02:35]} 9. Bd2 {[%emt 0:01:16]} fxe4 {[%emt 0:02:20]} 10. Nxe4 {[%emt 0:00:30]} Bxd2+ {[%emt 0:00:21]} 11. Kxd2 {[%emt 0:01:01]} Kc7 {[%emt 0:00:31]} 12. Ne2 {[%emt 0:04:31]} Bf5 {[%emt 0:00:22]} 13. Nxf6 {[%emt 0:01:22]} gxf6 {[%emt 0:00:02]} 14. Rad1 {[%emt 0:01:36]} Na6 {[%emt 0:00:21]} 15. Kc3 {[%emt 0:02:06]} Nc5 {[%emt 0:01:09]} 16. f3 {[%emt 0:00:49]} Rad8 {[%emt 0:01:15]} 17. Nc1 {[%emt 0:03:49]} a5 {[%emt 0:00:14]} 18. b3 {[%emt 0:02:59]} h5 {[%emt 0:00:30]} 19. Rhe1 {[%emt 0:03:13]} h4 {[%emt 0:01:30]} 20. g4 {[%emt 0:03:27]} Bg6 {[%emt 0:00:18]} 21. h3 {[%emt 0:01:53]} Ne6 {[%emt 0:01:16]} 22. Ne2 {[%emt 0:01:30]} b5 {[%emt 0:00:11]} 23. cxb5 {[%emt 0:04:30]} cxb5 {[%emt 0:00:24]} 24. Kb2 {[%emt 0:02:01]} Kb6 {[%emt 0:01:11]} 25. f4 {[%emt 0:07:29]} exf4 {[%emt 0:05:48]} 26. Bd5 {[%emt 0:09:16]} f3 {[%emt 0:02:26]} 27. Bxf3 {[%emt 0:01:48]} Ng5 {[%emt 0:00:32]} 28. Bg2 {[%emt 0:01:56]} Rhe8 {[%emt 0:00:17]} 29. Nf4 {[%emt 0:04:18]} Rxe1 {[%emt 0:02:51]} 30. Rxd8 {[%emt 0:01:15]} Rb1+ {[%emt 0:00:38]} 31. Ka3 {[%emt 0:01:08]} Be4 {[%emt 0:01:13]} 32. Rb8+ {[%emt 0:05:17]} Kc6 33. Rf8 Bxg2 34. Rxf6+ Kc7 0-1

[Event "SVK Amateur-ch 2020"]
[Site "Topolcany"]
[Date "2020.07.10"]
[Round "2.27"]
[White "Tropp, Oliver"]
[Black "Kulhanek, Jachym"]
[Result "1/2-1/2"]
[ECO "A10"]
[WhiteElo "2087"]
[BlackElo "1926"]
[Annotator "ChessBase"]
[PlyCount "148"]
[EventDate "2020.07.10"]
[EventType "swiss"]
[EventCountry "SVK"]
[SourceTitle "playchess.com"]
[Source "ChessBase"]
[SourceQuality "1"]
[TimeControl "3600+30"]

1. c4 {[%emt 0:00:00]} b6 {[%emt 0:00:00]} 2. Nc3 {[%emt 0:00:05]} Bb7 {[%emt 0:00:00]} 3. d4 {[%emt 0:00:19]} Nf6 {[%emt 0:01:53]} 4. Bg5 {[%emt 0:00:48]} e6 {[%emt 0:00:25]} 5. e4 {[%emt 0:02:28]} h6 {[%emt 0:04:57]} 6. Bxf6 {[%emt 0:01:15]} Qxf6 {[%emt 0:00:11]} 7. a3 {[%emt 0:00:31]} Qd8 {[%emt 0:08:50]} 8. Nf3 {[%emt 0:02:16]} Be7 {[%emt 0:01:34]} 9. Bd3 {[%emt 0:00:13]} O-O {[%emt 0:01:36]} 10. O-O {[%emt 0:06:27]} d6 {[%emt 0:04:25]} 11. Ne2 {[%emt 0:03:05]} Nd7 {[%emt 0:03:26]} 12. Rb1 {[%emt 0:01:52]} a5 {[%emt 0:02:34]} 13. Ng3 {[%emt 0:01:32]} Ba6 {[%emt 0:04:58]} 14. b4 {[%emt 0:01:17]} axb4 {[%emt 0:01:07]} 15. axb4 {[%emt 0:00:07]} Bb7 {[%emt 0:03:55]} 16. d5 {[%emt 0:04:23]} e5 {[%emt 0:06:20]} 17. Rb3 {[%emt 0:02:44]} g6 {[%emt 0:03:26]} 18. Qd2 {[%emt 0:01:40]} Bg5 {[%emt 0:00:38]} 19. Qb2 {[%emt 0:01:08]} Ra7 {[%emt 0:01:25]} 20. Ra1 {[%emt 0:00:47]} Rxa1+ {[%emt 0:02:04]} 21. Qxa1 {[%emt 0:00:07]} Nb8 {[%emt 0:01:23]} 22. c5 {[%emt 0:03:42]} dxc5 {[%emt 0:06:55]} 23. Qa7 {[%emt 0:02:33]} Bxd5 {[%emt 0:01:49]} 24. exd5 {[%emt 0:00:25]} Qxd5 {[%emt 0:00:07]} 25. Bc2 {[%emt 0:04:50]} Nc6 {[%emt 0:00:35]} 26. Qb7 {[%emt 0:05:58]} Nxb4 {[%emt 0:00:04]} 27. Qxd5 {[%emt 0:00:54]} Nxd5 {[%emt 0:00:04]} 28. Nxe5 {[%emt 0:00:19]} Re8 {[%emt 0:01:24]} 29. Nf3 {[%emt 0:00:38]} Bf6 {[%emt 0:00:58]} 30. Bd3 {[%emt 0:01:10]} Nb4 {[%emt 0:00:25]} 31. Bb1 {[%emt 0:01:32]} Bg7 {[%emt 0:01:16]} 32. h4 {[%emt 0:00:15]} c6 {[%emt 0:00:35]} 33. Kf1 {[%emt 0:00:41]} b5 {[%emt 0:00:14]} 34. h5 {[%emt 0:00:08]} Bf8 {[%emt 0:01:12]} 35. hxg6 {[%emt 0:00:25]} c4 {[%emt 0:00:39]} 36. gxf7+ {[%emt 0:00:59]} Kxf7 {[%emt 0:00:08]} 37. Ra3 {[%emt 0:01:47]} Nd3 {[%emt 0:01:10]} 38. Ra6 {[%emt 0:00:05]} c5 {[%emt 0:01:58]} 39. Rb6 {[%emt 0:05:04]} b4 {[%emt 0:00:14]} 40. Ba2 {[%emt 0:00:21]} b3 {[%emt 0:00:32]} 41. Bb1 {[%emt 0:01:57]} Re6 {[%emt 0:01:27]} 42. Rb5 {[%emt 0:02:21]} Nb4 {[%emt 0:00:37]} 43. Nd2 {[%emt 0:03:04]} c3 {[%emt 0:00:43]} 44. Nxb3 {[%emt 0:00:03]} c2 {[%emt 0:00:07]} 45. Bxc2 {[%emt 0:00:03]} Nxc2 {[%emt 0:00:08]} 46. Ne2 {[%emt 0:00:16]} Rd6 {[%emt 0:01:04]} 47. Rb7+ {[%emt 0:02:14]} Kf6 {[%emt 0:00:11]} 48. Ng3 {[%emt 0:00:26]} Rd1+ {[%emt 0:00:56]} 49. Ke2 {[%emt 0:00:13]} Rb1 {[%emt 0:00:19]} 50. Nxc5 {[%emt 0:01:51]} Rxb7 {[%emt 0:00:15]} 51. Nxb7 {[%emt 0:00:05]} Ke5 {[%emt 0:00:44]} 52. Na5 {[%emt 0:00:17]} Kd5 {[%emt 0:00:50]} 53. Nb3 {[%emt 0:00:42]} Nd4+ {[%emt 0:00:18]} 54. Nxd4 {[%emt 0:00:07]} Kxd4 {[%emt 0:00:06]} 55. f4 {[%emt 0:00:15]} Kd5 {[%emt 0:00:59]} 56. Kf3 {[%emt 0:00:08]} Ke6 {[%emt 0:00:14]} 57. Kg4 {[%emt 0:00:41]} Kf6 {[%emt 0:00:56]} 58. Ne4+ {[%emt 0:00:04]} Kg6 {[%emt 0:00:58]} 59. f5+ {[%emt 0:00:23]} Kh7 {[%emt 0:00:19]} 60. Kf4 {[%emt 0:00:54]} Kg7 {[%emt 0:01:05]} 61. Ke5 {[%emt 0:00:06]} Kf7 {[%emt 0:00:23]} 62. Kf4 {[%emt 0:04:24]} Ba3 {[%emt 0:00:54]} 63. Kg4 {[%emt 0:01:20]} Kg7 {[%emt 0:00:50]} 64. Kh5 {[%emt 0:00:08]} Bf8 {[%emt 0:00:33]} 65. g4 {[%emt 0:00:36]} Kf7 {[%emt 0:00:34]} 66. f6 {[%emt 0:00:15]} Ke6 {[%emt 0:00:34]} 67. Kg6 {[%emt 0:01:03]} Ke5 {[%emt 0:00:49]} 68. Ng3 {[%emt 0:01:45]} Kf4 {[%emt 0:00:48]} 69. Nf5 {[%emt 0:00:03]} Kxg4 {[%emt 0:00:29]} 70. Nxh6+ {[%emt 0:00:19]} Kf4 {[%emt 0:00:31]} 71. Ng8 {[%emt 0:00:50]} Ke5 {[%emt 0:00:30]} 72. Kf7 {[%emt 0:00:08]} Ba3 {[%emt 0:00:25]} 73. Ne7 {[%emt 0:00:27]} Bb2 {[%emt 0:00:55]} 74. Kg6 {[%emt 0:01:10]} Ke6 {[%emt 0:00:22]} 1/2-1/2

[Event "SVK Amateur-ch 2020"]
[Site "Topolcany"]
[Date "2020.07.10"]
[Round "2.28"]
[White "Moravcik, Rastislav"]
[Black "Frink, Ferenc"]
[Result "0-1"]
[ECO "A50"]
[WhiteElo "1916"]
[BlackElo "2075"]
[Annotator "ChessBase"]
[PlyCount "84"]
[EventDate "2020.07.10"]
[EventType "swiss"]
[EventCountry "SVK"]
[SourceTitle "playchess.com"]
[Source "ChessBase"]
[SourceQuality "1"]
[TimeControl "3600+30"]

1. d4 {[%emt 0:00:00]} Nf6 {[%emt 0:05:55]} 2. c4 {[%emt 0:00:20]} Nc6 {[%emt 0:00:13]} 3. Nf3 {[%emt 0:01:42]} e6 {[%emt 0:00:18]} 4. Nc3 {[%emt 0:01:16]} d6 {[%emt 0:00:10]} 5. e4 {[%emt 0:02:43]} Bd7 {[%emt 0:00:11]} 6. Be2 {[%emt 0:00:45]} h6 {[%emt 0:00:10]} 7. O-O {[%emt 0:00:51]} e5 {[%emt 0:00:15]} 8. d5 {[%emt 0:01:26]} Ne7 {[%emt 0:00:08]} 9. Ne1 {[%emt 0:00:58]} Ng6 {[%emt 0:00:14]} 10. Nd3 {[%emt 0:04:22]} Be7 {[%emt 0:00:33]} 11. Be3 {[%emt 0:01:05]} O-O {[%emt 0:00:12]} 12. Rc1 {[%emt 0:02:17]} a6 {[%emt 0:00:31]} 13. c5 {[%emt 0:12:07]} Nh7 {[%emt 0:01:09]} 14. Bg4 {[%emt 0:01:37]} Qc8 {[%emt 0:04:19]} 15. Bxd7 {[%emt 0:02:16]} Qxd7 {[%emt 0:00:02]} 16. c6 {[%emt 0:04:15]} bxc6 {[%emt 0:03:07]} 17. dxc6 {[%emt 0:00:08]} Qe6 {[%emt 0:00:13]} 18. Nd5 {[%emt 0:01:28]} Bd8 {[%emt 0:00:09]} 19. Qa4 {[%emt 0:07:28]} Ng5 {[%emt 0:05:43]} 20. f3 {[%emt 0:04:03]} f5 {[%emt 0:02:25]} 21. Bxg5 {[%emt 0:02:07]} hxg5 {[%emt 0:00:12]} 22. Ne3 {[%emt 0:05:41]} f4 {[%emt 0:11:46]} 23. Ng4 {[%emt 0:00:39]} Rf7 {[%emt 0:03:22]} 24. Qc4 {[%emt 0:01:38]} Qc8 {[%emt 0:00:44]} 25. Nb4 {[%emt 0:01:21]} Nf8 {[%emt 0:01:04]} 26. Rc3 {[%emt 0:01:56]} Ne6 {[%emt 0:01:35]} 27. Ra3 {[%emt 0:00:26]} a5 {[%emt 0:01:32]} 28. Nd5 {[%emt 0:00:22]} Nd4 {[%emt 0:00:56]} 29. Rd1 {[%emt 0:03:09]} Qa6 {[%emt 0:04:42]} 30. Qxa6 {[%emt 0:01:41]} Rxa6 {[%emt 0:00:17]} 31. b4 {[%emt 0:00:50]} a4 {[%emt 0:00:44]} 32. Nc3 {[%emt 0:00:51]} Rxc6 {[%emt 0:00:32]} 33. Kf1 {[%emt 0:02:20]} Nc2 {[%emt 0:01:29]} 34. Rxa4 {[%emt 0:00:13]} Rxc3 {[%emt 0:00:21]} 35. Nxe5 {[%emt 0:00:33]} dxe5 {[%emt 0:05:55]} 36. Rxd8+ {[%emt 0:00:10]} Rf8 {[%emt 0:00:06]} 37. Raa8 {[%emt 0:00:21]} Rxd8 {[%emt 0:00:14]} 38. Rxd8+ {[%emt 0:00:06]} Kf7 {[%emt 0:00:08]} 39. b5 {[%emt 0:00:18]} Ne3+ {[%emt 0:01:05]} 40. Ke2 {[%emt 0:00:49]} Nxg2 {[%emt 0:01:10]} 41. a4 {[%emt 0:00:25]} Rc2+ {[%emt 0:00:57]} 42. Kd3 {[%emt 0:01:20]} Ne1# {[%emt 0:00:16]} 0-1

[Event "SVK Amateur-ch 2020"]
[Site "Topolcany"]
[Date "2020.07.10"]
[Round "2.29"]
[White "Ihnat, Marek ml."]
[Black "Belus, Benjamin"]
[Result "1/2-1/2"]
[ECO "B90"]
[WhiteElo "2065"]
[BlackElo "1919"]
[Annotator "ChessBase"]
[PlyCount "57"]
[EventDate "2020.07.10"]
[EventType "swiss"]
[EventCountry "SVK"]
[SourceTitle "playchess.com"]
[Source "ChessBase"]
[SourceQuality "1"]
[TimeControl "3600+30"]

1. e4 {[%emt 0:00:00]} c5 {[%emt 0:00:00]} 2. Nf3 {[%emt 0:00:00]} d6 {[%emt 0:00:00]} 3. d4 {[%emt 0:00:00]} cxd4 {[%emt 0:00:00]} 4. Nxd4 {[%emt 0:00:00]} Nf6 {[%emt 0:00:06]} 5. Nc3 {[%emt 0:00:03]} a6 {[%emt 0:00:03]} 6. h3 {[%emt 0:00:07]} Nc6 {[%emt 0:00:08]} 7. g4 {[%emt 0:01:35]} h6 {[%emt 0:03:14]} 8. Bg2 {[%emt 0:00:30]} e5 {[%emt 0:00:09]} 9. Nb3 {[%emt 0:03:19]} Be6 {[%emt 0:00:04]} 10. Be3 {[%emt 0:00:12]} Be7 {[%emt 0:00:49]} 11. Qd2 {[%emt 0:01:30]} b5 {[%emt 0:00:54]} 12. O-O-O {[%emt 0:01:14]} Na5 {[%emt 0:01:34]} 13. Nxa5 {[%emt 0:00:58]} Qxa5 {[%emt 0:00:02]} 14. Kb1 {[%emt 0:00:35]} Rc8 {[%emt 0:02:31]} 15. f4 {[%emt 0:03:45]} Bc4 {[%emt 0:06:20]} 16. b3 {[%emt 0:09:21]} Bxb3 {[%emt 0:02:31]} 17. cxb3 {[%emt 0:01:57]} Qxc3 {[%emt 0:01:07]} 18. Qe2 {[%emt 0:04:27]} O-O {[%emt 0:03:20]} 19. g5 {[%emt 0:01:25]} Nh5 {[%emt 0:02:44]} 20. Rc1 {[%emt 0:19:46]} Ng3 {[%emt 0:01:47]} 21. Rxc3 {[%emt 0:02:16]} Nxe2 {[%emt 0:00:04]} 22. Rxc8 {[%emt 0:00:08]} Rxc8 {[%emt 0:00:18]} 23. fxe5 {[%emt 0:00:26]} dxe5 {[%emt 0:06:32]} 24. gxh6 {[%emt 0:00:23]} Ba3 {[%emt 0:05:09]} 25. hxg7 {[%emt 0:03:47]} Nc3+ {[%emt 0:01:42]} 26. Ka1 {[%emt 0:00:51]} Ne2 {[%emt 0:00:14]} 27. Kb1 {[%emt 0:05:27]} Nc3+ {[%emt 0:05:32]} 28. Ka1 {[%emt 0:00:06]} Ne2 {[%emt 0:00:04]} 29. Kb1 1/2-1/2